[Event "15th Tashkent Open Agzamov 2022"]
[Site "Tashkent"]
[Date "2022.05.11"]
[Round "10.6"]
[White "Vokhidov, Shamsiddin"]
[Black "Nigmatov, Ortik"]
[Result "1-0"]
[ECO "C78"]
[WhiteElo "2536"]
[BlackElo "2463"]
[Annotator "TA"]
[PlyCount "59"]
[EventDate "2022.05.05"]
[EventType "swiss"]
[EventCountry "UZB"]
[SourceTitle "playchess.com"]
[Source "ChessBase"]
[SourceQuality "1"]
[TimeControl "5400+30"]

{[%evp 19,59,27,5,-9,-9,-9,-2,-18,8,0,63,52,52,43,61,55,143,141,141,135,141,153,303,276,329,335,323,323,441,439,419,427,447,441,616,607,872,872,856,830,791,769]} 1. e4 {[%emt 0:00:05]} e5 {[%emt 0:00:08]} 2. Nf3 {[%emt 0:00:11]} Nc6 {[%emt 0:00:06]} 3. Bb5 {[%emt 0:00:15][%cal Bf1b5,Bb5a4,Ba4b3][%mdl 32]} a6 {[%emt 0:00:05]} 4. Ba4 {[%emt 0:00:02]} Nf6 {[%emt 0:00:07]} 5. O-O {[%emt 0:00:05]} Bc5 {[%emt 0:00:06]} 6. c3 {[%emt 0:00:51]} b5 {[%emt 0:00:07]} 7. Bb3 {[%emt 0:05:41]} d6 {[%emt 0:00:12]} 8. a4 {[%emt 0:00:30]} Bb7 {[%emt 0:00:17]} 9. d4 {[%emt 0:00:45]} Bb6 {[%emt 0:00:07]} 10. Re1 {[%emt 0:00:54]} O-O {[%emt 0:00:08] 10...0-0 is better than 10...h6.} 11. Be3 {[%emt 0:05:36] [#] C78: Ruy Lopez: Archangelsk and Möller Defences.} exd4 $146 {[%emt 0:02:06]} ({Don't play} 11... Nxe4 12. d5 $16) ({Predecessor:} 11... Re8 12. Nbd2 h6 13. axb5 axb5 14. Rxa8 Qxa8 15. d5 Bxe3 16. dxc6 Bxf2+ 17. Kxf2 Bxc6 18. Qe2 Qa7+ {1-0 (32) Priasmoro,N (2502)-Alibabaei,S (2039) Chess.com INT 2020}) 12. cxd4 {[%emt 0:00:12]} Na5 {[%emt 0:00:24]} (12... Nxe4 $2 13. d5 $18) 13. d5 {[%emt 0:00:41] The position is equal.} c5 {[%emt 0:12:07]} 14. Bc2 {[%emt 0:10:09]} c4 {[%emt 0:05:07]} (14... b4 $11) 15. Bxb6 {[%emt 0:09:12]} Qxb6 {[%emt 0:00:23]} 16. axb5 $1 {[%emt 0:00:20]} axb5 {[%emt 0:00:31]} 17. Qd4 {[%emt 0:00:45]} Qc5 {[%emt 0:15:14]} (17... Qc7 $14) 18. Qxc5 $16 {[%emt 0:07:01]} dxc5 {[%emt 0:00:06]} 19. Nc3 {[%emt 0:02:44][%cal Bb1c3,Bc3b5,Bb5c7,Bc7a8,Ba8b6][%mdl 32]} b4 {[%emt 0:00:45]} 20. Nb5 {[%emt 0:00:22]} Bc8 {[%emt 0:26:24]} (20... Nd7 $16 21. Nc7 Nb3 22. Rxa8 Bxa8) 21. Ne5 $18 {[%emt 0:02:56]} b3 {[%emt 0:19:26]} 22. Bb1 {[%emt 0:04:33]} Bd7 {[%emt 0:06:39]} 23. Nc7 {[%emt 0:01:45]} Nc6 {[%emt 0:00:12]} 24. Nxa8 {[%emt 0:05:26]} Nxe5 {[%emt 0:00:06]} 25. Nb6 {[%emt 0:03:04]} c3 {[%emt 0:06:50] White is clearly winning.} 26. f4 {[%emt 0:02:36][%cal Bf2f4,Bf4e5,Be5f6][%mdl 32]} cxb2 {[%emt 0:02:02]} 27. Ra7 {[%emt 0:00:19]} c4 {[%emt 0:01:52]} 28. fxe5 {[%emt 0:00:17]} c3 {[%emt 0:00:25]} 29. Rc7 {[%emt 0:00:12]} c2 {[%emt 0:02:14]} 30. exf6 {[%emt 0:01:12] Black did not feel at home in the position after the opening.  Weighted Error Value: White=0.02 (flawless) /Black=0.53} 1-0

[Event "15th Tashkent Open Agzamov 2022"]
[Site "Tashkent"]
[Date "2022.05.11"]
[Round "10.7"]
[White "Aditya Mittal"]
[Black "Begmuratov, Khumoyun"]
[Result "1-0"]
[ECO "E01"]
[WhiteElo "2490"]
[BlackElo "2384"]
[Annotator "TA"]
[PlyCount "123"]
[EventDate "2022.05.05"]
[EventType "swiss"]
[EventCountry "UZB"]
[SourceTitle "playchess.com"]
[Source "ChessBase"]
[SourceQuality "1"]
[TimeControl "5400+30"]

{[%evp 10,123,43,31,30,17,31,9,42,47,29,24,34,29,29,35,26,29,38,-14,0,4,6,5,10,0,54,72,78,54,54,60,57,61,87,34,44,23,41,27,122,134,141,137,173,138,137,139,149,150,171,180,220,220,281,281,281,281,281,281,281,273,398,398,391,372,387,363,628,645,643,623,610,594,804,783,1700,651,1689,1519,1635,1444,29972,29974,29973,29974,29977,29978,29979,29979,29982,29983,29983,29983,29986,29987,29988,29976,29975,29977,29979,29979,29978,29979,29975,29966,29983,29984,29985,29986,29994,29995,29995,29995,29997,29998]} 1. d4 {[%emt 0:00:05]} Nf6 {[%emt 0:00:15]} 2. c4 {[%emt 0:00:03]} e6 {[%emt 0:00:57]} 3. Nf3 {[%emt 0:00:05]} d5 {[%emt 0:01:05]} 4. g3 {[%emt 0:00:08]} Nc6 {[%emt 0:02:07]} 5. Bg2 {[%emt 0:00:11]} Bd6 {[%emt 0:01:41]} 6. O-O {[%emt 0:01:32]} O-O {[%emt 0:00:08] 6...0-0 scores better than 6...dxc4. E01: Catalan: Early deviations.} 7. Nbd2 {[%emt 0:05:36]} a5 {[%emt 0:01:26]} 8. a3 {[%emt 0:02:58]} b6 {[%emt 0:21:09] The position is equal.} 9. Qc2 {[%emt 0:00:58] [#]} Bb7 $146 {[%emt 0:01:02]} ({Predecessor:} 9... h6 10. Re1 Bb7 11. b3 Rb8 12. Bb2 Re8 13. Rad1 Na7 14. Ne5 Nd7 15. f4 c5 {0-1 (67) Schwertel,J (1987)-Schmidt,W (1673) Hoeheinoed 2008}) 10. b3 {[%emt 0:04:11]} Nb8 {[%emt 0:22:39]} 11. e4 {[%emt 0:20:39]} Nxe4 {[%emt 0:09:24]} 12. Nxe4 {[%emt 0:00:30]} dxe4 {[%emt 0:00:01]} 13. Ng5 {[%emt 0:00:16]} Be7 {[%emt 0:03:06] [#]} 14. Nxe4 {[%emt 0:09:01]} (14. Bxe4 $1 $14 Bxg5 15. Bxg5 (15. Bxb7 Ra7 $14) 15... Qxg5 16. Bxb7) 14... Nc6 {[%emt 0:08:23]} 15. d5 {[%emt 0:06:13]} exd5 {[%emt 0:00:56]} 16. cxd5 {[%emt 0:02:43]} Nd4 {[%emt 0:01:40]} 17. Qd1 $40 {[%emt 0:07:27][%mdl 128] White has some attack.} Qxd5 {[%emt 0:09:29]} (17... Nf5 $11) 18. Bb2 $14 {[%emt 0:03:55] Nf6+ is the strong threat.} ({Much worse is} 18. Nf6+ Bxf6 19. Bxd5 Bxd5 $17) 18... c5 {[%emt 0:01:46] [#]} 19. Nf6+ {[%emt 0:03:13][%mdl 64] Discovered Attack} Bxf6 {[%emt 0:00:02][%csl Gb7][%cal Rd5g2]} 20. Bxd5 {[%emt 0:00:01]} Bxd5 {[%emt 0:00:01]} 21. Bxd4 {[%emt 0:00:33]} Bxd4 {[%emt 0:00:02] This bishop pair is nice.} 22. Qd3 {[%emt 0:02:14]} (22. Rb1 $16) 22... Bxa1 {[%emt 0:06:46]} 23. Qxd5 {[%emt 0:02:29]} Bd4 {[%emt 0:00:02]} 24. Re1 {[%emt 0:03:11]} Rae8 {[%emt 0:01:35] [#]} (24... a4 $11) 25. Rxe8 $1 $16 {[%emt 0:01:19]} Rxe8 {[%emt 0:00:01][%mdl 4096] Endgame KQ-KRB} 26. Qc6 {[%emt 0:00:16][%csl LRb6,LRe8][%cal Rc6e8]} Re1+ {[%emt 0:00:36]} 27. Kg2 {[%emt 0:00:09] White wants to mate with Qa8+.} g6 {[%emt 0:00:35]} 28. Qxb6 {[%emt 0:01:02]} Re2 {[%emt 0:00:15] [#]} 29. Kf3 {[%emt 0:04:29]} (29. Qxa5 Rxf2+ 30. Kh3 Kg7 $14) 29... Rxf2+ {[%emt 0:00:03]} 30. Ke4 {[%emt 0:00:04]} Rxh2 {[%emt 0:03:07]} 31. Qxa5 {[%emt 0:00:33]} Re2+ {[%emt 0:00:50]} 32. Kd5 {[%emt 0:00:28]} Re3 {[%emt 0:03:03]} 33. Qb6 {[%emt 0:03:02]} Kg7 {[%emt 0:01:46]} 34. a4 {[%emt 0:01:14] aiming for a5.} Bc3 {[%emt 0:00:47]} 35. Kxc5 {[%emt 0:02:47]} ({Resist} 35. a5 $6 Bxa5 36. Qxa5 Rxg3 $18) 35... Rxg3 {[%emt 0:00:10]} (35... Be1 $142 36. Kd5 Rd3+ 37. Ke4 Rxg3) 36. Kc4 $18 {[%emt 0:05:02]} Be1 {[%emt 0:01:04]} 37. Qd4+ {[%emt 0:02:41]} Kg8 {[%emt 0:00:29]} 38. Qe4 {[%emt 0:01:31]} Bf2 {[%emt 0:00:28]} (38... Rc3+ 39. Kd4 Rc1) 39. Qf4 {[%emt 0:00:57]} Rg2 {[%emt 0:00:01]} 40. Qf3 {[%emt 0:01:14]} Rh2 {[%emt 0:00:01]} 41. a5 {[%emt 0:00:56][%cal Ba4a5,Ba5a6][%mdl 32]} Be1 {[%emt 0:01:25]} 42. a6 {[%emt 0:01:14] White threatens a7 and mate.} Ra2 {[%emt 0:00:26]} 43. Qa8+ {[%emt 0:02:19]} Kg7 {[%emt 0:00:01]} 44. a7 {[%emt 0:00:08]} Bf2 {[%emt 0:00:14]} 45. Qg2 {[%emt 0:00:05]} Rxa7 {[%emt 0:00:04]} 46. Qxf2 {[%emt 0:00:01] KQ-KR. White mates.} Rc7+ {[%emt 0:00:12]} 47. Kd5 {[%emt 0:00:24]} Rb7 {[%emt 0:00:04]} 48. Qb2+ {[%emt 0:00:45]} Kh6 {[%emt 0:01:04]} 49. b4 {[%emt 0:00:41]} f5 {[%emt 0:00:07]} 50. Kc6 {[%emt 0:01:02]} Rf7 {[%emt 0:00:03]} 51. b5 {[%emt 0:00:43]} f4 {[%emt 0:00:01]} 52. b6 {[%emt 0:00:53]} f3 {[%emt 0:00:01]} 53. Qc1+ {[%emt 0:01:50]} g5 {[%emt 0:01:08]} 54. b7 {[%emt 0:00:17]} f2 {[%emt 0:00:34]} 55. Qf1 {[%emt 0:00:27]} Rf8 {[%emt 0:00:49]} 56. Kc7 {[%emt 0:00:10]} Rf7+ {[%emt 0:00:15]} 57. Kb6 {[%emt 0:00:04]} Rf8 {[%emt 0:00:28]} 58. Ka7 {[%emt 0:00:02]} g4 {[%emt 0:00:28]} 59. b8=Q {[%emt 0:00:08]} Rf7+ {[%emt 0:00:16]} 60. Ka8 {[%emt 0:00:10]} Kg6 {[%emt 0:00:21]} 61. Qd6+ {[%emt 0:00:14]} Kg5 {[%emt 0:00:14]} 62. Qc1+ {[%emt 0:00:16] Weighted Error Value: White=0.05 (flawless) /Black=0.37} 1-0

[Event "15th Tashkent Open Agzamov 2022"]
[Site "Tashkent"]
[Date "2022.05.11"]
[Round "10.8"]
[White "Agmanov, Zhandos"]
[Black "Utegaliyev, Azamat"]
[Result "1/2-1/2"]
[ECO "B01"]
[WhiteElo "2420"]
[BlackElo "2463"]
[Annotator "TA"]
[PlyCount "67"]
[EventDate "2022.05.05"]
[EventType "swiss"]
[EventCountry "UZB"]
[SourceTitle "playchess.com"]
[Source "ChessBase"]
[SourceQuality "1"]
[TimeControl "5400+30"]

{[%evp 9,67,43,52,47,48,46,54,42,45,37,63,41,60,59,54,0,0,0,0,0,112,107,108,103,101,102,102,102,102,107,108,103,107,108,141,87,108,111,108,89,93,64,64,64,71,66,75,71,72,69,89,0,74,0,82,75,68,62,59,-5]} 1. e4 {[%emt 0:05:43]} d5 {[%emt 0:00:19]} 2. exd5 {[%emt 0:00:51]} Qxd5 {[%emt 0:00:04]} 3. Nc3 {[%emt 0:00:08]} Qd8 {[%emt 0:00:04]} 4. d4 {[%emt 0:00:58]} Nf6 {[%emt 0:00:15]} 5. Nf3 {[%emt 0:01:08]} g6 {[%emt 0:00:07]} 6. Bg5 {[%emt 0:00:52] B01: Scandinavian Defence.} Bg7 {[%emt 0:00:25]} 7. Qd2 {[%emt 0:00:20]} c6 {[%emt 0:01:26] [#]} 8. O-O-O $146 {[%emt 0:04:01]} ({Predecessor:} 8. Ne5 Nbd7 9. O-O-O O-O 10. Bc4 Nb6 11. Bb3 Nfd5 12. Rhe1 f6 13. Bh4 fxe5 14. dxe5 {0-1 (75) Hauge,L (2483)-Agrest,E (2574) chess24.com INT 2020}) 8... Bg4 {[%emt 0:12:06]} 9. Be2 {[%emt 0:04:34]} Nbd7 {[%emt 0:00:06]} 10. h3 {[%emt 0:06:00]} Bxf3 {[%emt 0:01:32]} 11. Bxf3 {[%emt 0:00:07]} e6 {[%emt 0:04:54][%cal Be7e6,Be6d5][%mdl 32] Against d5} 12. d5 {[%emt 0:16:30]} (12. g4 $14) 12... cxd5 $11 {[%emt 0:00:26]} 13. Nxd5 {[%emt 0:00:56]} exd5 {[%emt 0:13:40]} 14. Qb4 $1 {[%emt 0:03:13]} Bf8 {[%emt 0:00:06]} (14... Ne5 $11 15. Rhe1 Qc7 16. Bxf6 (16. Bf4 Nfd7 $15) 16... Bxf6 17. Rxd5 Rd8 18. Qb5+ Kf8 19. Rxd8+ (19. Rdxe5 Bxe5 20. Qxe5 Qxe5 $17) 19... Qxd8 20. Rxe5 Bxe5 21. Qxe5 Rg8) 15. Rhe1+ $16 {[%emt 0:04:45]} ({Worse is} 15. Qxb7 Rb8 16. Rhe1+ Be7 17. Qxa7 O-O 18. Bxd5 Bb4 $15) 15... Ne4 {[%emt 0:00:06]} 16. Qd2 $36 {[%emt 0:05:24][%mdl 2048] Black is under strong pressure. 0x0.0026dcc28fefdp-1022s more active pieces.} Be7 {[%emt 0:06:23]} 17. Bxe7 {[%emt 0:00:12]} Qxe7 {[%emt 0:00:13]} 18. Qxd5 {[%emt 0:00:23]} Ndf6 {[%emt 0:00:19]} 19. Qd4 {[%emt 0:02:12]} O-O {[%emt 0:01:36] [#] ...Rfe8 is the strong threat.} 20. Bxe4 {[%emt 0:00:04]} Nxe4 {[%emt 0:01:17]} 21. Qxe4 {[%emt 0:00:24]} ({Reject} 21. Rxe4 $6 Qg5+ 22. Qe3 Qxg2 $11) 21... Qc5 {[%emt 0:00:22]} 22. f4 {[%emt 0:09:14]} (22. Qxb7 $142 Qxf2 23. Qf3) 22... Rac8 {[%emt 0:00:05]} 23. c3 {[%emt 0:03:52]} b5 {[%emt 0:01:44]} 24. Kb1 {[%emt 0:00:12]} a5 {[%emt 0:01:07]} 25. Qe5 {[%emt 0:04:08]} Qc6 {[%emt 0:00:50]} 26. Qd5 {[%emt 0:00:19]} Qb6 {[%emt 0:00:05]} 27. Qd4 {[%emt 0:02:46]} Qb7 {[%emt 0:01:12]} 28. Qe4 {[%emt 0:02:00]} Qb8 {[%emt 0:07:16]} 29. Qe5 {[%emt 0:00:12]} Qb7 {[%emt 0:00:33]} 30. Qd5 {[%emt 0:01:22]} Qb6 {[%emt 0:02:07]} 31. Qd4 {[%emt 0:05:14]} Qb7 {[%emt 0:02:21]} 32. Rd2 {[%emt 0:01:38]} b4 {[%emt 0:00:43]} 33. cxb4 {[%emt 0:01:25]} axb4 {[%emt 0:00:04]} 34. Qf6 {[%emt 0:16:23] Weighted Error Value: White=0.14 (very precise) /Black=0.12 (very precise)} ({White should play} 34. Red1 $14) 1/2-1/2

[Event "15th Tashkent Open Agzamov 2022"]
[Site "Tashkent"]
[Date "2022.05.11"]
[Round "10.9"]
[White "Urazayev, Arystanbek"]
[Black "Saydaliev, Saidakbar"]
[Result "1/2-1/2"]
[ECO "B51"]
[WhiteElo "2445"]
[BlackElo "2343"]
[Annotator "TA"]
[PlyCount "111"]
[EventDate "2022.05.05"]
[EventType "swiss"]
[EventCountry "UZB"]
[SourceTitle "playchess.com"]
[Source "ChessBase"]
[SourceQuality "1"]
[TimeControl "5400+30"]

{[%evp 9,111,16,19,-14,-13,-8,0,-17,25,0,0,0,0,-39,-8,-5,-7,-35,-35,-35,-25,-26,-20,-80,-20,-60,-37,-58,-64,-53,-45,-77,-68,-74,-59,-242,-85,-110,-16,-83,-38,-201,0,0,43,32,39,69,58,34,98,95,117,23,135,0,0,0,125,100,183,163,187,187,196,187,416,83,537,502,438,262,272,0,0,0,0,0,0,0,0,0,0,0,0,0,0,-8,0,0,0,0,0,0,0,0,0,0,0,0,0,0,0,0]} 1. e4 {[%emt 0:07:24]} c5 {[%emt 0:01:37]} 2. Nf3 {[%emt 0:00:02]} d6 {[%emt 0:00:23]} 3. Bb5+ {[%emt 0:00:02]} Nd7 {[%emt 0:00:30]} 4. d4 {[%emt 0:00:05]} cxd4 {[%emt 0:00:53]} 5. Nxd4 {[%emt 0:00:03]} a6 {[%emt 0:02:43]} 6. Ba4 {[%emt 0:00:50] B51: Sicilian: Moscow Variation (3 Bb5+) without 3...Bd7.} Ngf6 {[%emt 0:01:31]} 7. O-O {[%emt 0:00:10]} e6 {[%emt 0:03:57]} (7... b5 $5 {[%cal Rb5a4]} 8. Bb3 Bb7 $11) 8. c4 {[%emt 0:00:09] Prevents b5.} Be7 {[%emt 0:04:05]} 9. Nc3 {[%emt 0:00:22]} O-O {[%emt 0:00:54]} 10. Qe2 {[%emt 0:01:34] [#]} Ne5 $146 {[%emt 0:05:24]} ({Predecessor:} 10... Qc7 11. f4 Nb6 12. Bb3 e5 13. Nf5 Bxf5 14. exf5 Rfe8 15. g4 exf4 16. Bxf4 Bf8 {½-½ (34) Carlsen,M (2847)-Wojtaszek,R (2691) Krasnaya Polyana 2021}) 11. f4 {[%emt 0:17:45] [#]} Nxc4 {[%emt 0:03:01]} 12. Qxc4 {[%emt 0:04:38] aiming for Qd3.} b5 {[%emt 0:00:16]} 13. Ncxb5 {[%emt 0:15:43]} axb5 {[%emt 0:00:12]} 14. Bxb5 {[%emt 0:00:10]} Bb7 {[%emt 0:07:27]} 15. Be3 {[%emt 0:03:02]} d5 {[%emt 0:07:24]} 16. Qb3 {[%emt 0:09:01]} (16. Qe2 $11 {keeps the balance.}) 16... Nxe4 {[%emt 0:05:37]} (16... dxe4 $17 {Threatens to win with ...Bc5.} 17. Bc6 Bxc6 18. Nxc6 Qd7 19. Nxe7+ Qxe7) 17. Rfc1 {[%emt 0:04:09]} Bd6 {[%emt 0:10:31]} 18. a4 {[%emt 0:03:56]} Qb8 {[%emt 0:02:52]} 19. g3 {[%emt 0:09:33]} g5 $1 {[%emt 0:10:32]} 20. Rf1 {[%emt 0:08:25]} gxf4 {[%emt 0:06:03]} 21. gxf4 {[%emt 0:00:02]} Kh8 {[%emt 0:00:11]} 22. Qd1 $2 {[%emt 0:01:15]} (22. Kh1 $15) 22... Rg8+ $2 {[%emt 0:02:54]} (22... e5 $1 $19 {[%cal Re5d4] has better winning chances.} 23. fxe5 Bxe5) 23. Kh1 $17 {[%emt 0:00:01]} Qd8 {[%emt 0:00:10]} ({Black should try} 23... Qf8 $1 $17 {[%cal Rf8h6]} 24. Qh5 Qg7) 24. Qh5 {[%emt 0:02:40]} (24. Bd3 $1 $11 {remains equal.}) 24... Qf6 {[%emt 0:00:26][%cal Og8g3]} 25. Bc6 $2 {[%emt 0:01:09]} ({White must play} 25. Bd3 $1 $15) 25... Rab8 $2 {[%emt 0:07:44]} (25... Bxc6 26. Nxc6 Bc5 27. Bxc5 Nxc5 28. Qe5 Qxe5 29. fxe5 $15) (25... Bc5 $1 $19 26. Bxb7 Bxd4 27. Bxa8 (27. Bxd4 $2 Qxd4 28. Qe5+ Qxe5 $19) 27... Bxe3) 26. Bxb7 $11 {[%emt 0:00:18][%cal Od4c6]} Rxb7 {[%emt 0:00:01]} (26... Bc5 $5 {[%cal Rc5d4]} 27. Bxd5 exd5 $11) 27. Nc6 {[%emt 0:02:04]} Bc5 {[%emt 0:00:53] Against Bd4} (27... Rxb2 $2 28. Bd4 Qxd4 29. Nxd4 $18) (27... Qg7 28. Rg1 Qf8 29. Ne5 Rxg1+ 30. Rxg1 $18) 28. Bxc5 {[%emt 0:03:56]} Nxc5 {[%emt 0:00:01]} 29. b4 $1 $36 {[%emt 0:04:57][%mdl 2048] Black is under pressure.} (29. Qe5 Qxe5 30. fxe5 Rxb2 31. Rxf7 Rgg2 $17) 29... Nd3 {[%emt 0:00:35]} (29... Qg7 $2 30. Rg1 Qf6 31. Rxg8+ Kxg8 32. Rg1+ Kh8 33. Qg4 $18) (29... Qb2 $1 $14 30. Qe5+ Qxe5 31. fxe5 Rc8) 30. Qf3 $16 {[%emt 0:00:41]} Qb2 {[%emt 0:03:32]} 31. Rab1 {[%emt 0:00:20]} (31. b5 $1 $16) 31... Qc2 {[%emt 0:01:42]} (31... Qa2 $11) 32. Ne5 {[%emt 0:00:52]} (32. b5 $1 $16) 32... Nxf4 {[%emt 0:03:43][%cal Of7f6]} 33. Rg1 {[%emt 0:00:09]} Rxg1+ {[%emt 0:04:43]} (33... Qf5 $11 34. Qc3 h5 35. Nd7+ f6 36. Rxg8+ (36. Nxf6 $2 Rbg7 $19) (36. Qxf6+ Qxf6 37. Rxg8+ Kxg8 $15) 36... Kxg8 37. Qc8+ Kh7 38. Nxf6+ Kg7 39. Rg1+ (39. Qxb7+ Kxf6 40. Re1 Qh3) 39... Ng6) 34. Rxg1 {[%emt 0:00:02]} Ng6 {[%emt 0:00:10] [#]} 35. a5 $1 {[%emt 0:01:50][%cal Ba4a5,Ba5a6][%mdl 1056] White has strong compensation.} Kg7 {[%emt 0:01:10] [#]} (35... Qc7 36. a6) 36. a6 $1 {[%emt 0:00:28]} Rc7 {[%emt 0:00:06]} 37. b5 {[%emt 0:00:31] Really sharp!} Qb2 $2 {[%emt 0:00:03]} (37... Qc5) 38. Qg3 $2 {[%emt 0:00:35]} (38. Qf4 $18 {and the rest is easy. And now Nxg6 would win.} Ra7 39. Nc6) 38... Rc3 $2 {[%emt 0:00:33][%mdl 8192]} (38... Rc1 $16) 39. Qf4 $18 {[%emt 0:00:19]} f6 {[%emt 0:03:42]} 40. Nxg6 {[%emt 0:00:02]} (40. Nd7 Ra3 41. Qf1 Qd4 $18) (40. a7 $142 Ra3 41. Nxg6 hxg6 42. Qc7+ (42. Qb8 Qc2 $11) 42... Kh6 43. Qb8) 40... hxg6 {[%emt 0:00:02][%mdl 4096] Endgame KQR-KQR} 41. Qg4 $2 {[%emt 0:00:20]} (41. Qd4 $18 Qb3 42. Qa7+ Kf8 43. Qa8+ (43. Rxg6 $2 Rc1+ 44. Qg1 Rxg1+ $19) 43... Kg7 44. Qa7+ (44. Qe8 Rg3 $18) 44... Kf8 45. Qf2 (45. Rxg6 $2 Rc1+ 46. Qg1 Rxg1+ $19)) 41... g5 $11 {[%emt 0:00:10] ...Rc2 is the strong threat. The position is equal.} 42. Qxe6 {[%emt 0:01:13]} Rc2 {[%emt 0:00:27][%csl Gb2][%cal Rc2h2]} 43. Qd6 {[%emt 0:00:34] Hoping for a7.} Qxb5 {[%emt 0:00:57]} 44. Qe7+ {[%emt 0:00:22]} Kg6 {[%emt 0:00:07]} 45. Qe6 {[%emt 0:00:40]} Qb8 {[%emt 0:01:50][%csl Gb8][%cal Rc2h2]} 46. Rg2 {[%emt 0:00:20]} Rc1+ {[%emt 0:00:46]} 47. Rg1 {[%emt 0:00:02]} Rc2 {[%emt 0:00:01][%csl Gb8][%cal Rc2h2]} 48. Rg2 {[%emt 0:00:00]} Rc5 {[%emt 0:01:20]} 49. Rxg5+ {[%emt 0:00:59][%mdl 64] Decoy} Kxg5 {[%emt 0:00:10]} 50. Qe3+ {[%emt 0:00:01]} Kh5 {[%emt 0:00:48] ( -> ...Qb1+)} 51. Qxc5 {[%emt 0:00:23] Strongly threatening a7.} Qb1+ {[%emt 0:00:05]} 52. Kg2 {[%emt 0:00:30]} Qa2+ {[%emt 0:00:02]} 53. Kg3 {[%emt 0:00:24]} Qxa6 {[%emt 0:00:24] White must now prevent ...Qd3+.} 54. Qxd5+ {[%emt 0:00:08]} Kh6 {[%emt 0:00:09]} 55. Qf5 {[%emt 0:00:50]} Qd6+ {[%emt 0:00:14]} 56. Qf4+ {[%emt 0:00:18] Never resign too early!  Weighted Error Value: White=0.46/Black=0.37} 1/2-1/2

[Event "15th Tashkent Open Agzamov 2022"]
[Site "Tashkent"]
[Date "2022.05.11"]
[Round "10.10"]
[White "Manafov, Vugar"]
[Black "Abdisalimov, Abdimalik"]
[Result "1/2-1/2"]
[ECO "B25"]
[WhiteElo "2311"]
[BlackElo "2435"]
[Annotator "TA"]
[PlyCount "84"]
[EventDate "2022.05.05"]
[EventType "swiss"]
[EventCountry "UZB"]
[SourceTitle "playchess.com"]
[Source "ChessBase"]
[SourceQuality "1"]
[TimeControl "5400+30"]

{[%evp 18,84,0,10,8,-18,16,19,16,21,27,27,24,28,21,15,11,0,0,0,0,0,0,-15,-5,-12,0,0,26,12,25,5,5,12,29,22,37,43,43,43,51,45,52,51,52,51,66,51,152,153,138,91,102,95,97,94,84,53,121,20,66,0,135,0,80,0,101,66,254]} 1. Nf3 {[%emt 1:31:00]} c5 {[%emt 0:00:43]} 2. g3 {[%emt 0:00:00]} g6 {[%emt 0:00:05]} 3. Bg2 {[%emt 0:00:00]} Bg7 {[%emt 0:00:05]} 4. O-O {[%emt 0:00:00]} Nc6 {[%emt 0:00:06]} 5. d3 {[%emt 0:00:00]} d6 {[%emt 0:01:46]} 6. e4 {[%emt 0:00:00]} e5 {[%emt 0:00:07]} 7. Nc3 {[%emt 0:00:00]} Nge7 {[%emt 0:00:06]} 8. Nd2 {[%emt 0:00:00]} O-O {[%emt 0:01:21]} 9. Nc4 {[%emt 0:00:00]} Be6 {[%emt 0:00:12]} 10. Nd5 {[%emt 0:00:00]} Qd7 {[%emt 0:03:16] B25: Closed Sicilian: 3 g3, lines without early Be3.} 11. Bh6 {[%emt 0:00:00] [#]} Bxd5 $146 {[%emt 0:01:56]} (11... f5 {feels hotter.} 12. Bxg7 Kxg7 13. f4 fxe4 14. dxe4 exf4 15. Rxf4 Rxf4 16. gxf4 Rf8) ({Predecessor:} 11... f6 12. Bxg7 Kxg7 13. Qd2 Nd8 14. c3 Rc8 15. f4 Nxd5 16. exd5 Bf5 17. fxe5 dxe5 {1-0 (39) Ligterink,G (2400)-Van der Weide,P (2290) Leeuwarden 1976}) 12. Bxg7 {[%emt 0:00:00]} Kxg7 {[%emt 0:00:06] The position is equal.} 13. exd5 {[%emt 0:00:00]} Nb4 {[%emt 0:00:21][%cal Bc6b4,Bb4a6,Ba6c7][%mdl 32]} 14. Ne3 {[%emt 0:00:00]} f5 {[%emt 0:01:55]} 15. a3 {[%emt 0:00:00]} Na6 {[%emt 1:25:55]} 16. f4 {[%emt 0:00:00]} exf4 {[%emt 0:00:00]} 17. gxf4 {[%emt 0:00:00]} Rae8 {[%emt 0:00:00]} 18. Qd2 {[%emt 0:00:00]} Ng8 {[%emt 0:00:00]} 19. Rae1 {[%emt 0:00:00][%cal Ba1e1,Be1e2,Be2g2,Bg2g3,Bg3h3][%mdl 32]} Nf6 {[%emt 0:00:00]} 20. Re2 {[%emt 0:00:00]} Nc7 {[%emt 0:02:30]} 21. c4 {[%emt 0:00:00]} b6 {[%emt 0:00:00]} 22. Bf3 {[%emt 0:00:00]} h6 {[%emt 0:00:00]} 23. Rg2 {[%emt 0:00:00]} Kh7 {[%emt 0:00:00]} 24. Bd1 {[%emt 0:00:00]} b5 {[%emt 0:00:00]} 25. b3 {[%emt 0:00:00]} bxc4 {[%emt 0:00:00]} 26. bxc4 {[%emt 0:00:00]} Re7 {[%emt 0:00:00]} 27. Kh1 {[%emt 0:00:00]} Rfe8 {[%emt 0:00:00]} 28. Rg3 {[%emt 0:00:00]} Rg8 {[%emt 0:00:00]} 29. Rfg1 {[%emt 0:00:00]} Reg7 {[%emt 0:00:00]} 30. Qf2 {[%emt 0:00:00]} Nce8 {[%emt 0:00:00]} 31. Rh3 {[%emt 0:00:00] aiming for Rg5.} Rf8 {[%emt 0:00:00]} 32. Ng2 {[%emt 0:00:00]} g5 {[%emt 0:00:00]} (32... Ng4 $2 33. Bxg4 fxg4 34. Rxh6+ $3 {[%mdl 512]} Kg8 35. Qh4 $18) (32... Qf7 $14) 33. fxg5 $16 {[%emt 0:00:00]} Rxg5 {[%emt 0:00:00] [#]} 34. Rf1 {[%emt 0:00:00]} (34. Rxh6+ $142 $3 {[%mdl 512]} Kxh6 35. Qf4) 34... Ng4 {[%emt 0:00:00]} 35. Bxg4 {[%emt 0:00:00]} Rxg4 {[%emt 0:00:00]} 36. Nf4 {[%emt 0:00:00]} Ng7 {[%emt 0:00:00]} 37. Re3 {[%emt 0:00:00]} Rf7 {[%emt 0:00:00]} (37... Re8 $14) 38. Ne6 {[%emt 0:00:00]} (38. h3 $16 Rg5 39. Qh4) 38... Rg6 {[%emt 0:00:00]} (38... Nxe6 $11 {is superior.} 39. Rxe6 (39. dxe6 Qb7+ 40. Qf3 Qxf3+ 41. Rfxf3 Re7 $11) 39... Qd8) 39. Nf4 {[%emt 0:00:03] White is much more active.} (39. Rg1 $14 Nxe6 40. Rxg6 Kxg6 41. Rxe6+ Rf6 42. Qg2+ Kf7 43. Re1) 39... Rg4 {[%emt 0:00:00]} 40. Ne6 {[%emt 0:02:29] Against Qd8} ({Better is} 40. h3 Rg5 41. Qh4) 40... Rg6 {[%emt 0:00:00][%cal Rg7e6]} 41. Nf4 {[%emt 0:00:12]} Rg4 {[%emt 0:00:00]} 42. Rfe1 {[%emt 0:17:46]} Qa4 $2 {[%emt 0:11:00][%mdl 32768] Weighted Error Value: White=0.20 (precise) /Black=0.12 (very precise) . An unexpected result.} (42... Qd8 $14) 1/2-1/2